[Event "Titled Tuesday Blitz December 13 Late 2022"]
[White "Floresvillar Gonzalez, Luis Migu"]
[Black "Prieto Aranguren, Alain"]
[WhiteFideId "5100542"]
[BlackFideId "2268906"]
[WhiteElo "2040"]
[BlackElo "2209"]
[Result "1-0"]
[Round "09"]
[TimeControl "180+1"]
[Date "2022.12.14"]
[WhiteClock "0:00:10"]
[BlackClock "0:00:01"]

1. d4 {[%clk 0:03:00]}  Nf6 {[%clk 0:02:58]} 2. Nf3 {[%clk 0:02:59]}  g6 {[%clk 0:02:59]} 3. Bg5 {[%clk 0:02:59]}  Bg7 {[%clk 0:03:00]} 4. Nbd2 {[%clk 0:02:58]}  O-O {[%clk 0:02:59]} 5. e4 {[%clk 0:02:58]}  c5 {[%clk 0:02:56]} 6. d5 {[%clk 0:02:55]}  d6 {[%clk 0:02:55]} 7. c3 {[%clk 0:02:55]}  a6 {[%clk 0:02:53]} 8. a4 {[%clk 0:02:53]}  Nbd7 {[%clk 0:02:51]} 9. Bc4 {[%clk 0:02:50]}  Rb8 {[%clk 0:02:50]} 10. a5 {[%clk 0:02:48]}  Ne5 {[%clk 0:02:49]} 11. Nxe5 {[%clk 0:02:46]}  dxe5 {[%clk 0:02:50]} 12. O-O {[%clk 0:02:45]}  Ne8 {[%clk 0:02:49]} 13. Nb3 {[%clk 0:02:35]}  Nd6 {[%clk 0:02:48]} 14. Qe2 {[%clk 0:02:25]}  Qc7 {[%clk 0:02:37]} 15. f3 {[%clk 0:02:11]}  f6 {[%clk 0:02:34]} 16. Be3 {[%clk 0:02:10]}  Bd7 {[%clk 0:02:26]} 17. Nxc5 {[%clk 0:02:09]}  Nxc4 {[%clk 0:02:26]} 18. Qxc4 {[%clk 0:02:07]}  Bb5 {[%clk 0:02:23]} 19. d6+ {[%clk 0:02:02]}  Bxc4 {[%clk 0:02:21]} 20. dxc7 {[%clk 0:02:02]}  Rbc8 {[%clk 0:02:20]} 21. Rfd1 {[%clk 0:01:36]}  Rxc7 {[%clk 0:02:18]} 22. b4 {[%clk 0:01:37]}  Rfc8 {[%clk 0:02:10]} 23. Rd2 {[%clk 0:01:29]}  Bf8 {[%clk 0:02:06]} 24. Rad1 {[%clk 0:01:29]}  e6 {[%clk 0:02:06]} 25. Rd8 {[%clk 0:01:27]}  Kf7 {[%clk 0:02:02]} 26. R1d7+ {[%clk 0:01:20]}  Rxd7 {[%clk 0:01:44]} 27. Rxd7+ {[%clk 0:01:19]}  Be7 {[%clk 0:01:43]} 28. Rxb7 {[%clk 0:01:18]}  Bb5 {[%clk 0:01:37]} 29. Kf2 {[%clk 0:01:05]}  Rd8 {[%clk 0:01:33]} 30. Ra7 {[%clk 0:00:59]}  Rd6 {[%clk 0:01:30]} 31. Nb3 {[%clk 0:00:52]}  Rd7 {[%clk 0:01:03]} 32. Rxd7 {[%clk 0:00:43]}  Bxd7 {[%clk 0:01:02]} 33. Bc5 {[%clk 0:00:35]}  Bd8 {[%clk 0:00:59]} 34. c4 {[%clk 0:00:28]}  Ba4 {[%clk 0:00:58]} 35. Nc1 {[%clk 0:00:25]}  Ke8 {[%clk 0:00:53]} 36. Ke3 {[%clk 0:00:25]}  Kd7 {[%clk 0:00:53]} 37. Kd3 {[%clk 0:00:25]}  Kc6 {[%clk 0:00:53]} 38. Kc3 {[%clk 0:00:25]}  Bxa5 {[%clk 0:00:47]} 39. Be7 {[%clk 0:00:23]}  Bb6 {[%clk 0:00:43]} 40. Bxf6 {[%clk 0:00:22]}  Bd4+ {[%clk 0:00:43]} 41. Kd3 {[%clk 0:00:23]}  Kb6 {[%clk 0:00:33]} 42. Ne2 {[%clk 0:00:22]}  Ba1 {[%clk 0:00:32]} 43. Nc3 {[%clk 0:00:22]}  Bb3 {[%clk 0:00:27]} 44. Bxe5 {[%clk 0:00:20]}  a5 {[%clk 0:00:27]} 45. bxa5+ {[%clk 0:00:18]}  Kxa5 {[%clk 0:00:25]} 46. c5 {[%clk 0:00:18]}  Bxc3 {[%clk 0:00:20]} 47. Bxc3+ {[%clk 0:00:17]}  Kb5 {[%clk 0:00:20]} 48. Kd4 {[%clk 0:00:18]}  Bd1 {[%clk 0:00:16]} 49. f4 {[%clk 0:00:18]}  Be2 {[%clk 0:00:10]} 50. g3 {[%clk 0:00:18]}  Bf1 {[%clk 0:00:10]} 51. h4 {[%clk 0:00:18]}  Bh3 {[%clk 0:00:09]} 52. Bd2 {[%clk 0:00:16]}  Kc6 {[%clk 0:00:07]} 53. Bc1 {[%clk 0:00:17]}  h5 {[%clk 0:00:07]} 54. Ba3 {[%clk 0:00:17]}  Bg4 {[%clk 0:00:06]} 55. Ke5 {[%clk 0:00:17]}  Bh3 {[%clk 0:00:06]} 56. Kf6 {[%clk 0:00:16]}  Bg2 {[%clk 0:00:06]} 57. Kxg6 {[%clk 0:00:16]}  Bxe4+ {[%clk 0:00:06]} 58. Kxh5 {[%clk 0:00:16]}  Bf3+ {[%clk 0:00:03]} 59. Kg5 {[%clk 0:00:16]}  Kd7 {[%clk 0:00:03]} 60. h5 {[%clk 0:00:17]}  Ke8 {[%clk 0:00:03]} 61. h6 {[%clk 0:00:17]}  Kf7 {[%clk 0:00:03]} 62. g4 {[%clk 0:00:16]}  Kg8 {[%clk 0:00:01]} 63. Bb2 {[%clk 0:00:15]}  Kh7 {[%clk 0:00:02]} 64. Be5 {[%clk 0:00:14]}  Bd5 {[%clk 0:00:02]} 65. Bg7 {[%clk 0:00:10]}  Be4 {[%clk 0:00:01]} 66. Kf6 {[%clk 0:00:10]} 1-0


[Site "https://www.chess.com"]

[Event "Titled Tuesday Blitz December 13 Late 2022"]
[White "Forgacs, Attila Jr."]
[Black "Yoo, Christopher Woojin"]
[WhiteFideId "773654"]
[BlackFideId "30909694"]
[WhiteElo "2168"]
[BlackElo "2463"]
[Result "0-1"]
[Round "09"]
[TimeControl "180+1"]
[Date "2022.12.13"]
[WhiteClock "0:00:20"]
[BlackClock "0:00:51"]

1. e4 {[%clk 0:03:00]}  c5 {[%clk 0:02:59]} 2. d3 {[%clk 0:03:01]}  Nc6 {[%clk 0:02:53]} 3. g3 {[%clk 0:03:01]}  g6 {[%clk 0:02:54]} 4. Bg2 {[%clk 0:03:02]}  Bg7 {[%clk 0:02:53]} 5. f4 {[%clk 0:03:03]}  d6 {[%clk 0:02:53]} 6. Nf3 {[%clk 0:03:03]}  Nf6 {[%clk 0:02:54]} 7. O-O {[%clk 0:03:03]}  O-O {[%clk 0:02:54]} 8. Nc3 {[%clk 0:03:03]}  Bd7 {[%clk 0:02:52]} 9. h3 {[%clk 0:03:01]}  h5 {[%clk 0:02:50]} 10. Be3 {[%clk 0:03:00]}  Rb8 {[%clk 0:02:49]} 11. a4 {[%clk 0:02:59]}  a6 {[%clk 0:02:44]} 12. Qd2 {[%clk 0:02:59]}  b5 {[%clk 0:02:44]} 13. axb5 {[%clk 0:02:59]}  axb5 {[%clk 0:02:44]} 14. Ne2 {[%clk 0:02:56]}  Kh8 {[%clk 0:02:26]} 15. c3 {[%clk 0:02:55]}  b4 {[%clk 0:02:25]} 16. e5 {[%clk 0:02:44]}  Nd5 {[%clk 0:02:20]} 17. exd6 {[%clk 0:02:34]}  bxc3 {[%clk 0:02:14]} 18. bxc3 {[%clk 0:02:19]}  Nxe3 {[%clk 0:02:11]} 19. Qxe3 {[%clk 0:02:14]}  exd6 {[%clk 0:02:11]} 20. Rfb1 {[%clk 0:02:02]}  Re8 {[%clk 0:02:08]} 21. Qd2 {[%clk 0:02:02]}  Qe7 {[%clk 0:01:47]} 22. Re1 {[%clk 0:01:53]}  Bf6 {[%clk 0:01:14]} 23. Ra6 {[%clk 0:01:28]}  Qe3+ {[%clk 0:01:11]} 24. Qxe3 {[%clk 0:01:23]}  Rxe3 {[%clk 0:01:11]} 25. d4 {[%clk 0:01:14]}  cxd4 {[%clk 0:01:08]} 26. cxd4 {[%clk 0:00:58]}  Rbe8 {[%clk 0:01:07]} 27. Kf2 {[%clk 0:00:58]}  Nb4 {[%clk 0:00:57]} 28. Rxd6 {[%clk 0:00:43]}  Nd3+ {[%clk 0:00:57]} 29. Kf1 {[%clk 0:00:40]}  Nxe1 {[%clk 0:00:58]} 30. Rxf6 {[%clk 0:00:23]}  Nxf3 {[%clk 0:00:54]} 31. Rxf7 {[%clk 0:00:20]}  Bb5 {[%clk 0:00:51]} 0-1


[Site "https://www.chess.com"]

[Event "Titled Tuesday Blitz December 13 Late 2022"]
[White "Gritsenko, Nikolai"]
[Black "Crevatin, Leo"]
[WhiteFideId "14112493"]
[BlackFideId "1726307"]
[WhiteElo "2389"]
[BlackElo "2190"]
[Result "1/2-1/2"]
[Round "09"]
[TimeControl "180+1"]
[Date "2022.12.13"]
[WhiteClock "0:00:13"]
[BlackClock "0:01:01"]

1. e4 {[%clk 0:03:00]}  c5 {[%clk 0:02:57]} 2. Nf3 {[%clk 0:03:00]}  d6 {[%clk 0:02:57]} 3. Bb5+ {[%clk 0:02:59]}  Bd7 {[%clk 0:02:57]} 4. c4 {[%clk 0:02:59]}  Nf6 {[%clk 0:02:56]} 5. Nc3 {[%clk 0:02:58]}  g6 {[%clk 0:02:56]} 6. O-O {[%clk 0:02:57]}  a6 {[%clk 0:02:56]} 7. Bxd7+ {[%clk 0:02:57]}  Nbxd7 {[%clk 0:02:56]} 8. d3 {[%clk 0:02:55]}  Bg7 {[%clk 0:02:56]} 9. Bg5 {[%clk 0:02:55]}  O-O {[%clk 0:02:55]} 10. Qd2 {[%clk 0:02:55]}  Re8 {[%clk 0:02:55]} 11. h3 {[%clk 0:02:53]}  Qc7 {[%clk 0:02:37]} 12. Rae1 {[%clk 0:02:41]}  Rad8 {[%clk 0:02:25]} 13. Nh2 {[%clk 0:02:35]}  b5 {[%clk 0:02:05]} 14. f4 {[%clk 0:02:24]}  b4 {[%clk 0:02:00]} 15. Ne2 {[%clk 0:02:21]}  e6 {[%clk 0:01:53]} 16. Ng4 {[%clk 0:02:00]}  Rc8 {[%clk 0:01:48]} 17. Nh6+ {[%clk 0:01:58]}  Kf8 {[%clk 0:01:47]} 18. Ng3 {[%clk 0:01:49]}  Ng8 {[%clk 0:01:44]} 19. f5 {[%clk 0:01:43]}  exf5 {[%clk 0:01:41]} 20. exf5 {[%clk 0:01:38]}  Rxe1 {[%clk 0:01:24]} 21. Rxe1 {[%clk 0:01:31]}  d5 {[%clk 0:01:18]} 22. fxg6 {[%clk 0:00:43]}  hxg6 {[%clk 0:01:11]} 23. Bf4 {[%clk 0:00:26]}  Bxh6 {[%clk 0:01:02]} 24. Bxh6+ {[%clk 0:00:25]}  Nxh6 {[%clk 0:01:03]} 25. Qxh6+ {[%clk 0:00:25]}  Kg8 {[%clk 0:01:03]} 26. Nf5 {[%clk 0:00:16]}  gxf5 {[%clk 0:01:03]} 27. Qg5+ {[%clk 0:00:16]}  Kf8 {[%clk 0:01:00]} 28. Qh6+ {[%clk 0:00:15]}  Kg8 {[%clk 0:01:00]} 29. Qg5+ {[%clk 0:00:13]}  Kf8 {[%clk 0:01:01]} 30. Qh6+ {[%clk 0:00:13]}  Kg8 {[%clk 0:01:01]} 1/2-1/2


[Site "https://www.chess.com"]

[Event "Titled Tuesday Blitz December 13 Late 2022"]
[White "Han, Yichen"]
[Black "Mazurkiewicz, Michal"]
[WhiteFideId "1054430"]
[BlackFideId "1124943"]
[WhiteElo "2323"]
[BlackElo "2081"]
[Result "1-0"]
[Round "09"]
[TimeControl "180+1"]
[Date "2022.12.14"]
[WhiteClock "0:00:09"]
[BlackClock "0:00:01"]

1. Nf3 {[%clk 0:02:53]}  Nf6 {[%clk 0:02:59]} 2. g3 {[%clk 0:02:53]}  g6 {[%clk 0:03:00]} 3. Bg2 {[%clk 0:02:54]}  Bg7 {[%clk 0:03:01]} 4. b3 {[%clk 0:02:53]}  O-O {[%clk 0:03:02]} 5. Bb2 {[%clk 0:02:53]}  d6 {[%clk 0:03:02]} 6. O-O {[%clk 0:02:53]}  Nbd7 {[%clk 0:03:03]} 7. c4 {[%clk 0:02:53]}  e5 {[%clk 0:03:03]} 8. Nc3 {[%clk 0:02:51]}  Re8 {[%clk 0:03:01]} 9. e4 {[%clk 0:02:49]}  c6 {[%clk 0:02:55]} 10. d4 {[%clk 0:02:48]}  exd4 {[%clk 0:02:55]} 11. Nxd4 {[%clk 0:02:46]}  Nc5 {[%clk 0:02:55]} 12. Re1 {[%clk 0:02:45]}  Qb6 {[%clk 0:02:54]} 13. h3 {[%clk 0:02:37]}  a5 {[%clk 0:02:46]} 14. Nc2 {[%clk 0:02:37]}  Nfxe4 {[%clk 0:02:20]} 15. Nxe4 {[%clk 0:02:23]}  Nxe4 {[%clk 0:02:19]} 16. Rxe4 {[%clk 0:02:01]}  Rxe4 {[%clk 0:01:56]} 17. Bxg7 {[%clk 0:02:00]}  Re8 {[%clk 0:01:37]} 18. Bc3 {[%clk 0:01:59]}  Bf5 {[%clk 0:01:32]} 19. Ne3 {[%clk 0:01:51]}  Be6 {[%clk 0:01:17]} 20. Qxd6 {[%clk 0:01:44]}  Qd8 {[%clk 0:01:13]} 21. Qe5 {[%clk 0:01:42]}  f6 {[%clk 0:01:06]} 22. Qf4 {[%clk 0:01:36]}  Rf8 {[%clk 0:00:59]} 23. Rd1 {[%clk 0:01:35]}  Qe7 {[%clk 0:01:00]} 24. Kh2 {[%clk 0:01:21]}  a4 {[%clk 0:00:59]} 25. Re1 {[%clk 0:01:11]}  Qf7 {[%clk 0:00:55]} 26. b4 {[%clk 0:00:52]}  Rad8 {[%clk 0:00:40]} 27. a3 {[%clk 0:00:50]}  Rd3 {[%clk 0:00:38]} 28. Bb2 {[%clk 0:00:50]}  Rb3 {[%clk 0:00:38]} 29. Bc1 {[%clk 0:00:46]}  Rc3 {[%clk 0:00:27]} 30. h4 {[%clk 0:00:36]}  h5 {[%clk 0:00:23]} 31. Be4 {[%clk 0:00:26]}  Bxc4 {[%clk 0:00:13]} 32. Bb2 {[%clk 0:00:23]}  Rb3 {[%clk 0:00:12]} 33. Bd4 {[%clk 0:00:15]}  Be6 {[%clk 0:00:08]} 34. Bc5 {[%clk 0:00:12]}  Re8 {[%clk 0:00:07]} 35. b5 {[%clk 0:00:12]}  Rxb5 {[%clk 0:00:04]} 36. Bb4 {[%clk 0:00:12]}  c5 {[%clk 0:00:04]} 37. Bc3 {[%clk 0:00:11]}  Rb3 {[%clk 0:00:04]} 38. Bxf6 {[%clk 0:00:12]}  Rf8 {[%clk 0:00:03]} 39. Bg5 {[%clk 0:00:09]}  Qxf4 {[%clk 0:00:04]} 40. Bxf4 {[%clk 0:00:09]}  Bf5 {[%clk 0:00:04]} 41. Bd5+ {[%clk 0:00:10]}  Kg7 {[%clk 0:00:04]} 42. Be5+ {[%clk 0:00:09]}  Kh7 {[%clk 0:00:05]} 43. Bxb3 {[%clk 0:00:09]}  axb3 {[%clk 0:00:05]} 44. Bd6 {[%clk 0:00:08]}  Rc8 {[%clk 0:00:02]} 45. Nxf5 {[%clk 0:00:07]}  gxf5 {[%clk 0:00:01]} 46. Re7+ {[%clk 0:00:08]}  Kg6 {[%clk 0:00:01]} 47. Rxb7 {[%clk 0:00:09]} 1-0


[Site "https://www.chess.com"]

[Event "Titled Tuesday Blitz December 13 Late 2022"]
[White "Jimenez Almeida, Luis David"]
[Black "Ankerst, Mihael"]
[WhiteFideId "22242244"]
[BlackFideId "14602369"]
[WhiteElo "2158"]
[BlackElo "2360"]
[Result "0-1"]
[Round "09"]
[TimeControl "180+1"]
[Date "2022.12.14"]
[WhiteClock "0:00:38"]
[BlackClock "0:00:19"]

1. e4 {[%clk 0:03:00]}  c5 {[%clk 0:02:56]} 2. Nc3 {[%clk 0:02:54]}  Nc6 {[%clk 0:02:54]} 3. Nge2 {[%clk 0:02:53]}  e6 {[%clk 0:02:54]} 4. g3 {[%clk 0:02:52]}  Nf6 {[%clk 0:02:54]} 5. Bg2 {[%clk 0:02:53]}  Be7 {[%clk 0:02:54]} 6. d4 {[%clk 0:02:52]}  cxd4 {[%clk 0:02:52]} 7. Nxd4 {[%clk 0:02:52]}  O-O {[%clk 0:02:43]} 8. O-O {[%clk 0:02:50]}  d6 {[%clk 0:02:42]} 9. Be3 {[%clk 0:02:49]}  Bd7 {[%clk 0:02:38]} 10. h3 {[%clk 0:02:44]}  a6 {[%clk 0:02:36]} 11. Qd2 {[%clk 0:02:43]}  Rc8 {[%clk 0:02:35]} 12. Rae1 {[%clk 0:02:40]}  Ne5 {[%clk 0:02:35]} 13. b3 {[%clk 0:02:39]}  Qc7 {[%clk 0:02:25]} 14. Nce2 {[%clk 0:02:28]}  Nc6 {[%clk 0:02:04]} 15. c4 {[%clk 0:02:21]}  b5 {[%clk 0:01:53]} 16. cxb5 {[%clk 0:02:15]}  Nxd4 {[%clk 0:01:52]} 17. Nxd4 {[%clk 0:02:13]}  axb5 {[%clk 0:01:53]} 18. f4 {[%clk 0:02:08]}  Qc3 {[%clk 0:01:52]} 19. Qf2 {[%clk 0:02:05]}  d5 {[%clk 0:01:47]} 20. Rc1 {[%clk 0:01:58]}  Qb4 {[%clk 0:01:32]} 21. e5 {[%clk 0:01:48]}  Ne4 {[%clk 0:01:31]} 22. Bxe4 {[%clk 0:01:48]}  dxe4 {[%clk 0:01:32]} 23. f5 {[%clk 0:01:44]}  exf5 {[%clk 0:01:03]} 24. Nxf5 {[%clk 0:01:45]}  Rxc1 {[%clk 0:00:48]} 25. Rxc1 {[%clk 0:01:37]}  Rc8 {[%clk 0:00:47]} 26. Rxc8+ {[%clk 0:01:27]}  Bxc8 {[%clk 0:00:48]} 27. g4 {[%clk 0:01:19]}  h5 {[%clk 0:00:41]} 28. gxh5 {[%clk 0:01:08]}  Bxf5 {[%clk 0:00:33]} 29. Qxf5 {[%clk 0:01:01]}  Qe1+ {[%clk 0:00:33]} 30. Kg2 {[%clk 0:00:59]}  Qxe3 {[%clk 0:00:32]} 31. e6 {[%clk 0:00:49]}  Qf3+ {[%clk 0:00:24]} 32. Qxf3 {[%clk 0:00:49]}  exf3+ {[%clk 0:00:25]} 33. Kxf3 {[%clk 0:00:49]}  fxe6 {[%clk 0:00:26]} 34. a4 {[%clk 0:00:48]}  bxa4 {[%clk 0:00:26]} 35. bxa4 {[%clk 0:00:49]}  Bb4 {[%clk 0:00:25]} 36. Ke4 {[%clk 0:00:48]}  Bc3 {[%clk 0:00:24]} 37. Kd3 {[%clk 0:00:47]}  Ba5 {[%clk 0:00:24]} 38. Kc4 {[%clk 0:00:47]}  Kf7 {[%clk 0:00:24]} 39. Kb5 {[%clk 0:00:47]}  Bd2 {[%clk 0:00:18]} 40. a5 {[%clk 0:00:48]}  e5 {[%clk 0:00:18]} 41. a6 {[%clk 0:00:47]}  Be3 {[%clk 0:00:18]} 42. Kc4 {[%clk 0:00:47]}  Kf6 {[%clk 0:00:18]} 43. Kd3 {[%clk 0:00:48]}  Bb6 {[%clk 0:00:17]} 44. Ke4 {[%clk 0:00:48]}  Ke6 {[%clk 0:00:18]} 45. h4 {[%clk 0:00:46]}  Ba7 {[%clk 0:00:18]} 46. Kf3 {[%clk 0:00:41]}  Kf5 {[%clk 0:00:18]} 47. Kg3 {[%clk 0:00:41]}  e4 {[%clk 0:00:19]} 48. Kh3 {[%clk 0:00:41]}  Kf4 {[%clk 0:00:18]} 49. h6 {[%clk 0:00:38]}  gxh6 {[%clk 0:00:19]} 50. h5 {[%clk 0:00:38]}  Kf3 {[%clk 0:00:18]} 51. Kh4 {[%clk 0:00:37]}  e3 {[%clk 0:00:19]} 52. Kh3 {[%clk 0:00:37]}  e2 {[%clk 0:00:19]} 53. Kh2 {[%clk 0:00:37]}  e1=Q {[%clk 0:00:19]} 54. Kh3 {[%clk 0:00:38]}  Qg3# {[%clk 0:00:19]} 0-1


[Site "https://www.chess.com"]

[Event "Titled Tuesday Blitz December 13 Late 2022"]
[White "Kim, Sergey"]
[Black "Dudzinski, Pawel"]
[WhiteFideId "13700570"]
[BlackFideId "1117890"]
[WhiteElo "2600"]
[BlackElo "2099"]
[Result "0-1"]
[Round "09"]
[TimeControl "180+1"]
[Date "2022.12.14"]
[WhiteClock "0:02:10"]
[BlackClock "0:01:57"]

1. d4 {[%clk 0:03:00]}  d5 {[%clk 0:02:55]} 2. c4 {[%clk 0:03:01]}  c6 {[%clk 0:02:55]} 3. Nf3 {[%clk 0:03:00]}  e6 {[%clk 0:02:55]} 4. Qc2 {[%clk 0:03:00]}  f5 {[%clk 0:02:56]} 5. Bg5 {[%clk 0:02:59]}  Nf6 {[%clk 0:02:55]} 6. Nbd2 {[%clk 0:02:57]}  Be7 {[%clk 0:02:55]} 7. Bxf6 {[%clk 0:02:56]}  Bxf6 {[%clk 0:02:55]} 8. e3 {[%clk 0:02:57]}  O-O {[%clk 0:02:53]} 9. Bd3 {[%clk 0:02:57]}  Bd7 {[%clk 0:02:53]} 10. g4 {[%clk 0:02:53]}  fxg4 {[%clk 0:02:49]} 11. Bxh7+ {[%clk 0:02:52]}  Kh8 {[%clk 0:02:49]} 12. Ne5 {[%clk 0:02:48]}  Bxe5 {[%clk 0:02:43]} 13. dxe5 {[%clk 0:02:49]}  Qh4 {[%clk 0:02:33]} 14. Bg6 {[%clk 0:02:40]}  Qxf2+ {[%clk 0:02:24]} 15. Kd1 {[%clk 0:02:40]}  Qxe3 {[%clk 0:02:25]} 16. Re1 {[%clk 0:02:31]}  Qg5 {[%clk 0:02:05]} 17. Bd3 {[%clk 0:02:14]}  Rf2 {[%clk 0:02:00]} 18. Qb3 {[%clk 0:02:10]}  Qxd2# {[%clk 0:01:57]} 0-1


[Site "https://www.chess.com"]

[Event "Titled Tuesday Blitz December 13 Late 2022"]
[White "Kujawski, Adam"]
[Black "Janaszak, Dawid"]
[WhiteFideId "1100920"]
[BlackFideId "1119206"]
[WhiteElo "2054"]
[BlackElo "2220"]
[Result "0-1"]
[Round "09"]
[TimeControl "180+1"]
[Date "2022.12.14"]
[WhiteClock "0:00:01"]
[BlackClock "0:00:29"]

1. e4 {[%clk 0:03:00]}  e5 {[%clk 0:02:56]} 2. Nf3 {[%clk 0:02:59]}  Nc6 {[%clk 0:02:56]} 3. Bb5 {[%clk 0:02:59]}  a6 {[%clk 0:02:54]} 4. Ba4 {[%clk 0:02:59]}  d6 {[%clk 0:02:52]} 5. O-O {[%clk 0:02:58]}  Nf6 {[%clk 0:02:52]} 6. Re1 {[%clk 0:02:56]}  Be7 {[%clk 0:02:51]} 7. c3 {[%clk 0:02:56]}  O-O {[%clk 0:02:50]} 8. h3 {[%clk 0:02:56]}  Kh8 {[%clk 0:02:41]} 9. d4 {[%clk 0:02:53]}  Bd7 {[%clk 0:02:40]} 10. d5 {[%clk 0:02:43]}  Nb8 {[%clk 0:02:36]} 11. c4 {[%clk 0:02:32]}  c6 {[%clk 0:02:31]} 12. Bc2 {[%clk 0:02:21]}  b5 {[%clk 0:02:27]} 13. b3 {[%clk 0:02:18]}  bxc4 {[%clk 0:02:26]} 14. bxc4 {[%clk 0:02:17]}  cxd5 {[%clk 0:02:26]} 15. cxd5 {[%clk 0:02:17]}  a5 {[%clk 0:02:22]} 16. Bd3 {[%clk 0:02:13]}  Na6 {[%clk 0:02:22]} 17. Ba3 {[%clk 0:02:10]}  Nb4 {[%clk 0:02:19]} 18. Nc3 {[%clk 0:02:04]}  Rc8 {[%clk 0:02:13]} 19. Rc1 {[%clk 0:02:02]}  Qb6 {[%clk 0:02:12]} 20. Bf1 {[%clk 0:01:24]}  g6 {[%clk 0:02:11]} 21. Nd2 {[%clk 0:01:09]}  Nh5 {[%clk 0:02:02]} 22. Nc4 {[%clk 0:01:05]}  Qa7 {[%clk 0:02:02]} 23. Bb2 {[%clk 0:00:47]}  f5 {[%clk 0:01:56]} 24. a3 {[%clk 0:00:44]}  Na6 {[%clk 0:01:32]} 25. exf5 {[%clk 0:00:38]}  Rb8 {[%clk 0:01:20]} 26. fxg6 {[%clk 0:00:33]}  Qxf2+ {[%clk 0:01:19]} 27. Kh1 {[%clk 0:00:31]}  hxg6 {[%clk 0:01:03]} 28. Ne4 {[%clk 0:00:28]}  Ng3+ {[%clk 0:00:57]} 29. Nxg3 {[%clk 0:00:26]}  Qxg3 {[%clk 0:00:58]} 30. Rc3 {[%clk 0:00:11]}  Qf2 {[%clk 0:00:53]} 31. Rce3 {[%clk 0:00:07]}  Nc5 {[%clk 0:00:48]} 32. Nxe5 {[%clk 0:00:06]}  Rxb2 {[%clk 0:00:40]} 33. Nxg6+ {[%clk 0:00:05]}  Kg7 {[%clk 0:00:39]} 34. Rxe7+ {[%clk 0:00:04]}  Kxg6 {[%clk 0:00:37]} 35. Rxd7 {[%clk 0:00:01]}  Nxd7 {[%clk 0:00:32]} 36. Qg4+ {[%clk 0:00:01]}  Kh6 {[%clk 0:00:29]} 37. Re6+ {[%clk 0:00:01]}  Nf6 {[%clk 0:00:29]} 0-1


[Site "https://www.chess.com"]

[Event "Titled Tuesday Blitz December 13 Late 2022"]
[White "Marchesich, Giovanni"]
[Black "Reprintsev, Alexander"]
[WhiteFideId "2824790"]
[BlackFideId "14100541"]
[WhiteElo "2200"]
[BlackElo "2230"]
[Result "0-1"]
[Round "09"]
[TimeControl "180+1"]
[Date "2022.12.14"]
[WhiteClock "0:00:02"]
[BlackClock "0:00:16"]

1. e4 {[%clk 0:03:00]}  d5 {[%clk 0:02:59]} 2. Nc3 {[%clk 0:02:58]}  d4 {[%clk 0:02:58]} 3. Nce2 {[%clk 0:02:58]}  c5 {[%clk 0:02:58]} 4. Ng3 {[%clk 0:02:58]}  Qa5 {[%clk 0:02:57]} 5. Nf3 {[%clk 0:02:55]}  Nc6 {[%clk 0:02:51]} 6. Bc4 {[%clk 0:02:37]}  h5 {[%clk 0:02:48]} 7. h4 {[%clk 0:02:36]}  Bg4 {[%clk 0:02:39]} 8. O-O {[%clk 0:02:25]}  e6 {[%clk 0:02:38]} 9. Be2 {[%clk 0:02:18]}  Bd6 {[%clk 0:02:37]} 10. d3 {[%clk 0:02:14]}  Qc7 {[%clk 0:02:33]} 11. Nh2 {[%clk 0:01:56]}  Bxe2 {[%clk 0:02:28]} 12. Qxe2 {[%clk 0:01:54]}  Bxg3 {[%clk 0:02:25]} 13. fxg3 {[%clk 0:01:54]}  Qxg3 {[%clk 0:02:25]} 14. Bg5 {[%clk 0:01:43]}  f6 {[%clk 0:02:21]} 15. Rf3 {[%clk 0:01:40]}  Qc7 {[%clk 0:02:18]} 16. Bf4 {[%clk 0:01:35]}  e5 {[%clk 0:02:18]} 17. Bg3 {[%clk 0:01:33]}  O-O-O {[%clk 0:02:18]} 18. Raf1 {[%clk 0:01:32]}  Nge7 {[%clk 0:01:58]} 19. Be1 {[%clk 0:01:22]}  Kb8 {[%clk 0:01:53]} 20. Bd2 {[%clk 0:01:19]}  Ka8 {[%clk 0:01:52]} 21. Rg3 {[%clk 0:01:20]}  Nc8 {[%clk 0:01:48]} 22. Rg6 {[%clk 0:01:16]}  Nd6 {[%clk 0:01:46]} 23. Rf3 {[%clk 0:01:14]}  Rd7 {[%clk 0:01:39]} 24. Rfg3 {[%clk 0:00:53]}  a6 {[%clk 0:01:35]} 25. a3 {[%clk 0:00:52]}  Ka7 {[%clk 0:01:35]} 26. Nf1 {[%clk 0:00:48]}  Nd8 {[%clk 0:01:26]} 27. Rf3 {[%clk 0:00:47]}  Ne6 {[%clk 0:01:25]} 28. Rgg3 {[%clk 0:00:31]}  c4 {[%clk 0:01:22]} 29. Bb4 {[%clk 0:00:22]}  cxd3 {[%clk 0:01:19]} 30. cxd3 {[%clk 0:00:22]}  a5 {[%clk 0:01:12]} 31. Bd2 {[%clk 0:00:17]}  Qc2 {[%clk 0:01:05]} 32. Qe1 {[%clk 0:00:15]}  b6 {[%clk 0:01:04]} 33. Rf2 {[%clk 0:00:13]}  Qb3 {[%clk 0:01:01]} 34. Qe2 {[%clk 0:00:05]}  Rc7 {[%clk 0:00:59]} 35. Qe1 {[%clk 0:00:04]}  Rc2 {[%clk 0:00:59]} 36. Bc1 {[%clk 0:00:02]}  Rhc8 {[%clk 0:00:55]} 37. Rxc2 {[%clk 0:00:02]}  Qxc2 {[%clk 0:00:55]} 38. Bd2 {[%clk 0:00:02]}  Qxb2 {[%clk 0:00:55]} 39. Qd1 {[%clk 0:00:02]}  Rc2 {[%clk 0:00:41]} 40. Qxh5 {[%clk 0:00:02]}  Rxd2 {[%clk 0:00:40]} 41. Nxd2 {[%clk 0:00:02]}  Qxd2 {[%clk 0:00:41]} 42. Qh8 {[%clk 0:00:02]}  Qc1+ {[%clk 0:00:26]} 43. Kh2 {[%clk 0:00:03]}  Qxa3 {[%clk 0:00:26]} 44. Qg8 {[%clk 0:00:03]}  Qb3 {[%clk 0:00:22]} 45. h5 {[%clk 0:00:03]}  a4 {[%clk 0:00:19]} 46. h6 {[%clk 0:00:02]}  gxh6 {[%clk 0:00:19]} 47. Rg6 {[%clk 0:00:02]}  Nc5 {[%clk 0:00:16]} 0-1


[Site "https://www.chess.com"]